bitfinex/quotes_BTCUSD_20240911
["timestamp","ask_amount","ask_price","bid_price","bid_amount"]
[1726062185663,0.37864018,56505.0,56477.0,0.52535264]
[1726062185664,0.1427,56501.0,56477.0,0.52535264]
[1726062185883,0.6486445,56498.0,56477.0,0.52535264]
[1726062186167,0.82458468,56498.0,56477.0,0.52535264]
[1726062186409,0.6283445,56492.0,56477.0,0.52535264]
[1726062186633,0.80428468,56492.0,56477.0,0.52535264]
[1726062186867,0.88771315,56492.0,56477.0,0.52535264]
[1726062187129,0.88771315,56492.0,56475.0,0.00163]
[1726062187130,0.5666445,56478.0,56475.0,0.00163]
[1726062187347,0.17594018,56477.0,56476.0,0.52535264]
[1726062187558,0.17594018,56477.0,56475.0,0.00163]
[1726062187769,0.1408,56476.0,56475.0,0.00163]
[1726062188196,0.39600865,56476.0,56475.0,0.00163]
[1726062188418,0.31674018,56476.0,56475.0,0.00163]
[1726062189138,0.4759445,56470.0,56458.0,0.0035853]
[1726062189345,0.79428468,56470.0,56458.0,0.0035853]
[1726062189556,0.03,56465.0,56458.0,0.0035853]
[1726062189790,0.4759445,56452.0,56441.0,0.47661194]
[1726062190030,0.0618,56450.0,56441.0,0.47661194]
[1726062190260,0.0618,56450.0,56437.0,0.0040536]
[1726062190261,0.4759445,56446.0,56437.0,0.0040536]
[1726062190473,0.0773,56462.0,56445.0,0.4759445]
[1726062190680,0.06607814,56476.0,56445.0,0.4759445]
[1726062190681,0.0773,56468.0,56446.0,0.17594018]
[1726062190902,0.0773,56468.0,56450.0,0.4759445]
[1726062191129,0.0773,56468.0,56449.0,0.17594018]
[1726062191130,0.0773,56468.0,56451.0,0.14644273]
[1726062191384,0.0773,56468.0,56450.0,0.17594018]
[1726062191609,0.0773,56468.0,56451.0,0.17594018]
[1726062192053,0.0863,56468.0,56451.0,0.17594018]
[1726062192511,0.1003,56468.0,56451.0,0.17594018]
[1726062193187,0.1003,56468.0,56454.0,0.52535264]
[1726062193421,0.1003,56468.0,56452.0,0.0035424]
[1726062193422,0.014,56468.0,56467.0,0.17594018]
[1726062193640,0.023,56468.0,56467.0,0.31674018]
[1726062193853,0.023,56468.0,56467.0,1.81674018]
[1726062194079,0.014,56468.0,56467.0,1.73764018]
[1726062194294,0.014,56468.0,56467.0,1.5]
[1726062194531,0.023,56468.0,56467.0,1.5]
[1726062194767,0.023,56468.0,56467.0,1.72731865]
[1726062194999,0.014,56468.0,56467.0,2.28596315]
[1726062195258,0.014,56468.0,56467.0,2.28896315]
[1726062195259,0.015,56468.0,56467.0,2.28896315]
[1726062195911,0.002,56468.0,56467.0,2.28896315]
[1726062196408,0.002,56468.0,56467.0,2.37836315]
[1726062196650,0.002,56468.0,56467.0,2.40736315]
[1726062196879,0.002,56468.0,56467.0,2.35236315]
[1726062197107,0.003,56468.0,56467.0,1.88141865]
[1726062197564,0.003,56468.0,56467.0,2.35736315]
[1726062198000,0.003,56468.0,56467.0,2.36149346]
[1726062198213,0.002,56468.0,56467.0,2.35236315]
[1726062198425,0.003,56468.0,56467.0,2.35736315]
[1726062198648,0.003,56468.0,56467.0,1.88141865]
[1726062198912,0.003,56468.0,56467.0,2.35736315]
[1726062198913,0.002,56468.0,56467.0,2.35736315]
[1726062199124,0.002,56468.0,56467.0,2.35936315]
[1726062199345,0.002,56468.0,56467.0,2.38036315]
[1726062199553,0.002,56468.0,56467.0,2.35736315]
[1726062200452,0.001,56468.0,56467.0,2.35236315]
[1726062200676,0.001,56468.0,56467.0,2.39136315]
[1726062200898,0.001,56468.0,56467.0,2.42136315]
[1726062201343,0.001,56468.0,56467.0,2.40736315]
[1726062201603,0.001,56468.0,56467.0,2.42136315]
[1726062202071,0.001,56468.0,56467.0,2.48136315]
[1726062202502,0.002,56468.0,56467.0,2.48136315]
[1726062202724,0.0008502,56493.0,56484.0,0.146]
[1726062202970,0.0008502,56493.0,56488.0,0.4759445]
[1726062203185,0.0008502,56493.0,56489.0,0.1794802]
[1726062203603,0.0008502,56493.0,56490.0,1.5]
[1726062203822,0.0008502,56493.0,56491.0,0.17594018]
[1726062204279,0.0008502,56493.0,56492.0,0.00353971]
[1726062204500,0.0008502,56493.0,56492.0,1.73516341]
[1726062204717,0.0008502,56493.0,56492.0,1.7316237]
[1726062204940,0.0018502,56493.0,56492.0,1.7316237]
[1726062205170,0.0058502,56493.0,56492.0,1.7316237]
[1726062205646,0.0028502,56493.0,56492.0,1.7446237]
[1726062206088,0.0028502,56493.0,56492.0,1.85543597]
[1726062206089,0.0018502,56493.0,56492.0,1.85543597]
[1726062206309,0.0018502,56493.0,56492.0,1.85743597]
[1726062206524,0.0028502,56493.0,56492.0,1.87143597]
[1726062208304,0.0028502,56493.0,56492.0,1.87852397]
[1726062208724,0.0028502,56493.0,56492.0,1.93972397]
[1726062208962,0.0028502,56493.0,56492.0,1.99972397]
[1726062209251,0.0028502,56493.0,56492.0,1.91472397]
[1726062209470,0.0028502,56493.0,56492.0,1.77472397]
[1726062209686,0.0018502,56493.0,56492.0,0.013]
[1726062209896,0.0018502,56493.0,56492.0,0.18894018]
[1726062210098,0.0018502,56493.0,56492.0,0.18994018]
[1726062210313,0.0028502,56493.0,56492.0,1.70294018]
[1726062210524,0.0018502,56493.0,56492.0,1.76474018]
[1726062210959,0.0028502,56493.0,56492.0,1.77874018]
[1726062211172,0.0028502,56493.0,56492.0,1.70294018]
[1726062211380,0.0028502,56493.0,56492.0,0.20294018]
[1726062211582,0.0652502,56493.0,56492.0,0.027]
[1726062211828,0.0028502,56493.0,56492.0,0.20294018]
[1726062212272,0.0008502,56493.0,56492.0,0.18794018]
[1726062212676,0.0008502,56493.0,56492.0,0.026]
[1726062212889,0.1393502,56493.0,56492.0,0.026]
[1726062213147,0.1393502,56493.0,56492.0,0.012]
[1726062213349,0.1393502,56493.0,56492.0,0.023]
[1726062213557,0.1393502,56493.0,56492.0,0.037]
[1726062213817,0.1393502,56493.0,56470.0,0.070917]
[1726062213818,0.3292254,56493.0,56470.0,0.070917]
[1726062214063,0.0604,56473.0,56465.0,0.07893187]
[1726062214491,0.0604,56468.0,56465.0,0.07893187]
[1726062214707,0.0604,56468.0,56453.0,0.00928329]
[1726062214924,0.0604,56468.0,56455.0,0.52535264]
[1726062215138,0.0617,56467.0,56456.0,0.24699779]
[1726062215366,0.0617,56467.0,56456.0,0.17594018]
[1726062215786,0.0617,56467.0,56465.0,0.001]
[1726062216638,0.0617,56467.0,56444.0,0.47948747]
[1726062216639,0.0617,56467.0,56456.0,0.001]
[1726062217069,0.0617,56467.0,56457.0,0.17594018]
[1726062217294,0.0617,56467.0,56456.0,0.001]
[1726062217527,0.5714545,56466.0,56465.0,0.001]
[1726062217749,0.0833,56466.0,56465.0,0.001]
[1726062218409,0.25924018,56466.0,56465.0,0.001]
[1726062218630,0.35434018,56466.0,56465.0,0.001]
[1726062218875,0.35434018,56466.0,56441.0,0.38044868]
[1726062218876,0.03,56452.0,56441.0,0.38044868]
[1726062219096,0.5363445,56442.0,56441.0,0.38044868]
[1726062219330,0.74288468,56442.0,56441.0,0.29256826]
[1726062219579,0.09,56441.0,56440.0,0.49245648]
[1726062219822,0.06,56438.0,56437.0,0.0040536]
[1726062220071,0.4759445,56425.0,56423.0,0.0021657]
[1726062220344,0.17594018,56424.0,56423.0,0.0021657]
[1726062220612,0.25814018,56424.0,56423.0,0.0021657]
[1726062221051,0.33454865,56424.0,56423.0,0.0021657]
[1726062221481,0.35414018,56424.0,56423.0,0.0021657]
[1726062221695,0.1482,56424.0,56423.0,0.0021657]
[1726062223253,0.1762,56424.0,56423.0,0.0021657]
[1726062223645,0.1622,56424.0,56423.0,0.0021657]
[1726062223969,0.0962,56424.0,56423.0,0.0021657]
[1726062224563,0.10998686,56424.0,56423.0,0.0021657]
[1726062225198,0.28592704,56424.0,56423.0,0.0021657]
[1726062225433,0.76187154,56424.0,56423.0,0.0021657]
[1726062225663,0.77587154,56424.0,56423.0,0.0021657]
[1726062225885,0.03,56419.0,56415.0,0.0049038]
[1726062226122,0.77558468,56419.0,56415.0,0.0049038]
[1726062226345,0.77558468,56419.0,56401.0,0.001636]
[1726062226346,0.03,56409.0,56401.0,0.001636]
[1726062226592,0.038,56424.0,56402.0,0.52535264]
[1726062226593,0.4759445,56404.0,56402.0,0.52535264]
[1726062226806,0.65188468,56404.0,56401.0,0.001636]
[1726062227019,0.0621,56403.0,56401.0,0.001636]
[1726062227451,0.17594018,56402.0,56401.0,0.001636]
[1726062227659,0.25224018,56402.0,56401.0,0.001636]
[1726062228367,0.25224018,56402.0,56378.0,0.0021657]
[1726062228368,0.03,56401.0,56378.0,0.0021657]
[1726062228668,0.17594018,56401.0,56378.0,0.0021657]
[1726062228902,0.34210865,56401.0,56378.0,0.0021657]
[1726062229348,0.25654018,56401.0,56378.0,0.0021657]
[1726062229581,0.36054018,56401.0,56378.0,0.0021657]
[1726062230026,0.28454018,56401.0,56378.0,0.0021657]
[1726062230469,0.0946,56401.0,56378.0,0.0021657]
[1726062230677,0.0946,56401.0,56387.0,0.0624]
[1726062230897,0.1226,56401.0,56387.0,0.0624]
[1726062231151,0.042,56401.0,56388.0,0.00354657]
[1726062231394,0.042,56401.0,56393.0,1.5]
[1726062231605,0.042,56401.0,56387.0,0.0624]
[1726062232028,0.014,56401.0,56388.0,1.5]
[1726062232248,0.4759445,56404.0,56388.0,1.5]
[1726062232490,0.4759445,56404.0,56400.0,0.0031657]
[1726062232726,0.014,56401.0,56400.0,0.0031657]
[1726062232938,0.014,56401.0,56400.0,0.17910588]
[1726062233151,0.0832,56413.0,56400.0,0.19601647]
[1726062233353,0.06,56427.0,56400.0,0.19601647]
[1726062233354,0.014,56404.0,56402.0,0.0628]
[1726062233586,0.014,56404.0,56403.0,0.17594018]
[1726062235299,0.002,56401.0,56400.0,0.0038017]
[1726062235951,0.014,56404.0,56400.0,0.17974188]
[1726062236172,0.001,56404.0,56403.0,0.004]
[1726062236653,0.001,56404.0,56401.0,0.17594018]
[1726062236867,0.4759445,56416.0,56401.0,0.17594018]
[1726062237510,0.177183,56439.0,56400.0,0.0038017]
[1726062237511,0.4759445,56402.0,56400.0,0.0038017]
[1726062237713,0.0801,56401.0,56400.0,0.0038017]
[1726062237941,0.4759445,56402.0,56400.0,0.0038017]
[1726062238380,0.009,56404.0,56400.0,0.0038017]
[1726062238843,0.4759445,56401.0,56400.0,0.0038017]
[1726062239344,0.82398468,56401.0,56400.0,0.0038017]
[1726062239576,0.82398468,56401.0,56394.0,0.001634]
[1726062239577,0.03,56400.0,56394.0,0.001634]
[1726062239796,0.4759445,56395.0,56394.0,0.001634]
[1726062240066,0.52353895,56395.0,56394.0,0.001634]
[1726062240804,0.4759445,56400.0,56394.0,0.001634]
[1726062241032,0.014,56401.0,56395.0,0.17594018]
[1726062241501,0.014,56401.0,56397.0,0.0788]
[1726062241738,0.014,56401.0,56398.0,1.67948595]
[1726062241943,0.014,56401.0,56399.0,0.17594018]
[1726062242568,0.014,56401.0,56400.0,1.5]
[1726062242778,0.014,56401.0,56400.0,1.67594018]
[1726062242779,0.015,56401.0,56400.0,1.67594018]
[1726062243195,0.014,56401.0,56400.0,1.81994018]
[1726062243410,0.007,56401.0,56400.0,1.81994018]
[1726062243626,0.007,56401.0,56400.0,1.84294018]
[1726062243627,0.015,56401.0,56400.0,1.84294018]
[1726062243842,0.001,56401.0,56400.0,1.84294018]
[1726062244737,0.52535264,56443.0,56400.0,1.84294018]
[1726062244738,0.52535264,56443.0,56414.0,0.0651]
[1726062244965,0.52535264,56443.0,56400.0,2.17488468]
[1726062244966,0.52535264,56443.0,56428.0,0.5518445]
[1726062245194,0.52535264,56443.0,56420.0,0.1424]
[1726062245195,0.4759445,56433.0,56420.0,0.1424]
[1726062245417,0.4759445,56435.0,56421.0,1.51424]
[1726062245635,0.4759445,56440.0,56421.0,1.51424]
[1726062246057,0.17594018,56439.0,56421.0,1.67594018]
[1726062246264,0.4759445,56438.0,56422.0,0.70129282]
[1726062246489,0.1437,56442.0,56422.0,0.17594018]
[1726062246727,0.014,56435.0,56422.0,0.17594018]
[1726062246968,0.014,56435.0,56421.0,1.501]
[1726062247188,0.014,56435.0,56421.0,1.67694018]
[1726062247189,0.4759445,56433.0,56421.0,1.67694018]
[1726062247436,0.013,56439.0,56422.0,0.17594018]
[1726062248615,0.013,56439.0,56421.0,1.502]
[1726062248616,0.013,56439.0,56431.0,0.17594018]
[1726062249081,0.014,56435.0,56432.0,0.17594018]
[1726062249294,0.014,56435.0,56433.0,0.01759402]
[1726062249515,0.014,56435.0,56434.0,0.17948397]
[1726062249724,0.014,56435.0,56434.0,1.67948397]
[1726062249932,0.013,56439.0,56434.0,1.67948397]
[1726062249933,0.014,56439.0,56434.0,1.67948397]
[1726062250143,0.015,56439.0,56434.0,1.67594018]
[1726062250554,0.001,56435.0,56434.0,1.67594018]
[1726062250974,0.001,56435.0,56434.0,1.68094018]
[1726062251608,0.001,56435.0,56434.0,1.82074018]
[1726062251825,0.001,56435.0,56434.0,1.84374018]
[1726062252059,0.001,56435.0,56434.0,1.84974018]
[1726062252060,0.002,56435.0,56434.0,1.84974018]
[1726062252474,0.0022935,56455.0,56436.0,0.002]
[1726062252707,0.0022935,56455.0,56447.0,0.17594018]
[1726062252921,0.0022935,56455.0,56448.0,0.00354302]
[1726062253135,0.0022935,56455.0,56449.0,0.17594018]
[1726062253980,0.0022935,56455.0,56450.0,1.5]
[1726062254186,0.0112935,56455.0,56451.0,0.17594018]
[1726062254466,0.14,56454.0,56449.0,0.001]
[1726062254702,0.4759445,56452.0,56449.0,0.001]
[1726062255339,0.078,56451.0,56449.0,0.001]
[1726062255559,0.17594018,56450.0,56449.0,0.001]
[1726062255778,0.25512865,56450.0,56449.0,0.001]
[1726062255996,0.078,56451.0,56449.0,0.001]
[1726062256214,0.078,56451.0,56449.0,0.002]
[1726062256431,0.078,56451.0,56449.0,0.003]
[1726062257285,0.078,56451.0,56449.0,0.002]
[1726062257286,0.009,56450.0,56449.0,0.002]
[1726062257495,0.078,56451.0,56449.0,0.001]
[1726062257695,0.062,56454.0,56439.0,0.0635]
[1726062257917,0.062,56454.0,56440.0,0.19035018]
[1726062258140,0.023,56451.0,56449.0,0.002]
[1726062258621,0.009,56451.0,56449.0,0.001]
[1726062259276,0.072,56454.0,56439.0,0.001]
[1726062259508,0.4759445,56446.0,56425.0,0.1459]
[1726062259727,0.25674018,56453.0,56433.0,0.52535264]
[1726062259728,0.0808,56440.0,56433.0,0.52535264]
[1726062259955,0.24034018,56439.0,56416.0,0.0634]
[1726062260173,0.4759445,56434.0,56419.0,0.24306544]
[1726062260401,0.24034018,56439.0,56410.0,0.00936521]
[1726062260402,0.4759445,56429.0,56410.0,0.00936521]
[1726062260617,0.4759445,56429.0,56411.0,0.17594018]
[1726062260618,0.65188468,56429.0,56411.0,0.17594018]
[1726062261295,0.65188468,56429.0,56407.0,0.1477516]
[1726062261296,0.4759445,56417.0,56407.0,0.0018516]
[1726062261515,0.0751,56416.0,56407.0,0.0018516]
[1726062262576,0.4759445,56423.0,56408.0,0.17594018]
[1726062262577,0.0777,56423.0,56408.0,0.17594018]
[1726062262783,0.0765,56428.0,56410.0,0.0801]
[1726062262999,0.013,56416.0,56411.0,0.71802962]
[1726062263205,0.013,56416.0,56411.0,0.23854018]
[1726062264074,0.027,56416.0,56411.0,0.23854018]
[1726062264709,0.014,56416.0,56412.0,0.17594018]
[1726062265285,0.014,56416.0,56414.0,0.0812]
[1726062265491,0.014,56416.0,56415.0,0.17594018]
[1726062265877,0.014,56416.0,56415.0,0.23914018]
[1726062265878,0.023,56416.0,56415.0,0.23914018]
[1726062266096,0.009,56416.0,56415.0,0.23914018]
[1726062266295,0.009,56416.0,56415.0,0.3191231]
[1726062266505,0.079,56438.0,56415.0,0.3191231]
[1726062266506,0.079,56438.0,56415.0,1.8191231]
[1726062266684,0.0752,56442.0,56420.0,0.0785]
[1726062266905,0.0655,56447.0,56425.0,0.0653]
[1726062266906,0.52535264,56445.0,56425.0,0.0653]
[1726062267113,0.1407,56447.0,56426.0,0.17594018]
[1726062267362,0.1407,56447.0,56427.0,1.52412402]
[1726062267638,0.1407,56447.0,56428.0,0.17594018]
[1726062267835,0.0752,56447.0,56429.0,0.0823]
[1726062268048,0.014,56438.0,56430.0,0.17594018]
[1726062268263,0.014,56438.0,56431.0,1.5]
[1726062268491,0.026,56438.0,56432.0,0.19369523]
[1726062268936,0.014,56438.0,56432.0,0.19369523]
[1726062269149,0.014,56438.0,56433.0,1.5]
[1726062269359,0.014,56438.0,56434.0,0.17594018]
[1726062269360,0.027,56438.0,56434.0,0.17594018]
[1726062269574,0.013,56438.0,56434.0,0.17948405]
[1726062269806,0.014,56447.0,56435.0,0.01972391]
[1726062270018,0.001,56438.0,56436.0,0.17594018]
[1726062270865,0.002,56438.0,56436.0,0.17594018]
[1726062271491,0.002,56438.0,56437.0,0.0609]
[1726062271700,0.002,56438.0,56437.0,0.23684018]
[1726062271701,0.001,56438.0,56437.0,0.23684018]
[1726062271901,0.0809,56456.0,56437.0,0.26249659]
[1726062272132,0.0809,56456.0,56438.0,0.17594018]
[1726062272355,0.0809,56456.0,56438.0,0.17948369]
[1726062272573,0.0809,56456.0,56438.0,0.17594018]
[1726062273011,0.009819,56451.0,56438.0,0.17594018]
[1726062273221,0.009819,56451.0,56439.0,0.02842205]
[1726062273435,0.009819,56451.0,56440.0,0.17594018]
[1726062273436,0.000819,56451.0,56440.0,0.17594018]
[1726062273729,0.013819,56451.0,56440.0,0.17594018]
[1726062273932,0.022819,56451.0,56440.0,0.17594018]
[1726062274165,0.035819,56451.0,56440.0,0.17594018]
[1726062274370,0.035819,56451.0,56441.0,0.02909186]
[1726062274569,0.035819,56451.0,56442.0,0.17594018]
[1726062274804,0.035819,56451.0,56435.0,0.001634]
[1726062275036,0.0809,56448.0,56435.0,0.17757418]
[1726062275255,0.0809,56448.0,56436.0,0.70129282]
[1726062275481,0.009819,56451.0,56437.0,0.07029268]
[1726062275704,0.009819,56451.0,56446.0,0.4759445]
[1726062275705,0.000819,56451.0,56446.0,0.4759445]
[1726062275917,0.009819,56451.0,56448.0,0.1361]
[1726062276135,0.009819,56451.0,56449.0,0.17594018]
[1726062276374,0.009819,56451.0,56448.0,0.1361]
[1726062276375,0.009819,56451.0,56450.0,2.15542751]
[1726062276616,0.000819,56451.0,56450.0,2.17842751]
[1726062276835,0.008819,56451.0,56450.0,2.26332751]
[1726062277075,0.008819,56451.0,56450.0,2.26132751]
[1726062277298,0.021819,56451.0,56450.0,2.26332751]
[1726062277531,0.008819,56451.0,56450.0,2.26332751]
[1726062277743,0.000817,56454.0,56450.0,2.26332751]
[1726062277744,0.000817,56454.0,56450.0,2.32832751]
[1726062277959,0.000817,56454.0,56453.0,0.25314018]
[1726062278164,0.000817,56454.0,56453.0,0.25668196]
[1726062278379,0.000817,56454.0,56453.0,0.27968196]
[1726062278590,0.000817,56454.0,56453.0,0.25668196]
[1726062278807,0.000817,56454.0,56453.0,0.25314018]
[1726062280237,0.000817,56454.0,56453.0,0.27614018]
[1726062280453,0.000817,56454.0,56453.0,0.28168201]
[1726062280680,0.000817,56454.0,56453.0,0.25514018]
[1726062280930,0.000817,56454.0,56453.0,0.26429019]
[1726062281170,0.000817,56454.0,56453.0,0.37551016]
[1726062281439,0.000817,56454.0,56453.0,1.87551016]
[1726062281702,0.000817,56454.0,56453.0,1.84896789]
[1726062281941,0.001817,56454.0,56453.0,1.85096789]
[1726062282183,0.001817,56454.0,56453.0,1.76461788]
[1726062282702,0.001817,56454.0,56453.0,1.86351788]
[1726062282996,0.002817,56454.0,56453.0,1.87751788]
[1726062283220,0.001817,56454.0,56453.0,1.90351788]
[1726062283489,0.001817,56454.0,56453.0,1.96961788]
[1726062283490,0.002817,56454.0,56453.0,1.96961788]
[1726062283729,0.0021657,56458.0,56453.0,1.96961788]
[1726062283730,0.00018101,56458.0,56457.0,0.142]
[1726062283947,0.00018101,56458.0,56457.0,0.37612447]
[1726062284192,0.00018101,56458.0,56457.0,0.35312447]
[1726062284425,0.00018101,56458.0,56457.0,0.38166593]
[1726062285148,0.00018101,56458.0,56457.0,1.88166593]
[1726062285355,0.000819,56467.0,56461.0,0.2012]
[1726062285581,0.000819,56467.0,56466.0,0.65188468]
[1726062285821,0.000819,56467.0,56466.0,0.67688468]
[1726062286051,0.000819,56467.0,56466.0,0.75768468]
[1726062286301,0.000819,56467.0,56466.0,0.75568468]
[1726062286508,0.000819,56467.0,56466.0,2.35198468]
[1726062286716,0.000819,56467.0,56466.0,2.47334238]
[1726062286966,0.000819,56473.0,56472.0,0.6483445]
[1726062287177,0.000819,56473.0,56472.0,0.84728468]
[1726062287609,0.0021657,56481.0,56480.0,0.4759445]
[1726062287831,0.0021657,56481.0,56480.0,0.17594018]
[1726062288045,0.0021657,56481.0,56480.0,0.1935342]
[1726062288286,0.0021657,56481.0,56480.0,1.6935342]
[1726062289627,0.0021657,56481.0,56480.0,0.1935342]
[1726062290064,0.0031657,56481.0,56480.0,0.2075342]
[1726062290285,0.0031657,56481.0,56480.0,0.6974787]
[1726062290723,0.0031657,56481.0,56480.0,0.2215342]
[1726062290942,0.0031657,56481.0,56480.0,0.2075342]
[1726062291184,0.0031657,56481.0,56480.0,0.2085342]
[1726062291400,0.0031657,56481.0,56480.0,0.6844787]
[1726062291612,0.0031657,56481.0,56480.0,2.2660787]
[1726062291835,0.0031657,56481.0,56480.0,2.2650787]
[1726062292906,0.0021657,56481.0,56480.0,2.2740787]
[1726062293111,0.0051657,56481.0,56480.0,1.6935342]
[1726062293313,0.0051657,56481.0,56480.0,0.1935342]
[1726062293520,0.0061657,56481.0,56480.0,0.2025342]
[1726062293776,0.0041657,56481.0,56480.0,0.2165342]
[1726062293948,0.0646657,56481.0,56480.0,0.014]
[1726062294621,0.0021657,56481.0,56480.0,0.17594018]
[1726062294833,0.0021657,56481.0,56480.0,0.18194018]
[1726062296258,0.0021657,56481.0,56480.0,0.17594018]
[1726062296550,0.0021657,56481.0,56480.0,0.1935342]
[1726062296551,0.0071657,56481.0,56480.0,0.1935342]
[1726062296799,0.0071657,56481.0,56480.0,0.2571342]
[1726062296997,0.0051657,56481.0,56480.0,0.1935342]
[1726062299679,0.0051657,56481.0,56480.0,0.1985342]
[1726062299894,0.0051657,56481.0,56480.0,0.2065342]
[1726062300331,0.0051657,56481.0,56480.0,0.31217474]
[1726062300553,0.0051657,56481.0,56480.0,0.3086342]
[1726062300769,0.0051657,56481.0,56480.0,0.31217433]
[1726062301206,0.0051657,56481.0,56480.0,1.8086342]
[1726062301421,0.0051657,56481.0,56480.0,1.7065342]
[1726062301642,0.0059827,56481.0,56480.0,1.7065342]
[1726062301880,0.0059827,56481.0,56480.0,0.013]
[1726062302349,0.0059827,56481.0,56480.0,0.18894018]
[1726062303873,0.0059827,56481.0,56480.0,0.21194018]
[1726062304093,0.0059827,56481.0,56480.0,0.18894018]
[1726062304389,0.0059827,56481.0,56480.0,0.013]
[1726062304615,0.0059827,56481.0,56480.0,0.005]
[1726062304835,0.0029827,56481.0,56464.0,0.0802]
[1726062305064,0.0840827,56481.0,56480.0,0.011]
[1726062305524,0.0039827,56481.0,56480.0,0.18694018]
[1726062305749,0.0039827,56481.0,56480.0,0.22412447]
[1726062305960,0.0039827,56481.0,56480.0,0.22766506]
[1726062306180,0.0039827,56481.0,56480.0,0.227665]
[1726062306394,0.0039827,56481.0,56480.0,0.296065]
[1726062306395,0.0029827,56481.0,56480.0,0.296065]
[1726062306613,0.0029827,56481.0,56480.0,0.483565]
[1726062306831,0.000819,56492.0,56491.0,0.4759445]
[1726062307051,0.000819,56492.0,56491.0,0.85250468]
[1726062307277,0.0049631,56493.0,56491.0,0.85250468]
[1726062307278,1e-08,56493.0,56492.0,0.092]
[1726062307521,1e-08,56493.0,56492.0,0.37317905]
[1726062307797,0.000819,56511.0,56492.0,0.37317905]
[1726062307798,0.000819,56511.0,56503.0,0.6127445]
[1726062308059,0.000819,56511.0,56503.0,0.81168468]
[1726062308300,0.000819,56511.0,56503.0,1.73729788]
[1726062308831,0.000819,56511.0,56485.0,0.0821]
[1726062308832,0.1491847,56504.0,56485.0,0.0821]
[1726062309073,0.1491847,56504.0,56481.0,0.52535264]
[1726062309074,0.0824,56502.0,56481.0,0.52535264]
[1726062309313,0.1462,56495.0,56482.0,0.17594018]
[1726062309545,0.1435,56494.0,56491.0,0.014]
[1726062309788,0.064,56492.0,56491.0,0.014]
[1726062310056,0.064,56492.0,56473.0,0.4759445]
[1726062310326,0.064,56492.0,56485.0,0.009]
[1726062310560,0.064,56492.0,56486.0,0.17594018]
[1726062310808,0.064,56492.0,56487.0,0.01849402]
[1726062311063,0.064,56492.0,56485.0,0.009]
[1726062311064,0.082,56491.0,56485.0,0.009]
[1726062311306,0.082,56491.0,56465.0,0.52535264]
[1726062311307,0.082,56489.0,56465.0,0.52535264]
[1726062311551,0.1398,56486.0,56466.0,0.17594018]
[1726062312051,0.0779,56485.0,56466.0,0.17594018]
[1726062312285,0.0779,56485.0,56467.0,0.01759402]
[1726062312515,0.0779,56485.0,56468.0,0.17594018]
[1726062312787,0.0779,56485.0,56472.0,0.17594018]
[1726062314115,0.5540445,56484.0,56472.0,0.17694018]
[1726062314352,0.0781,56484.0,56473.0,0.02123549]
[1726062314584,0.0781,56484.0,56474.0,0.17594018]
[1726062315804,0.000817,56485.0,56479.0,0.17594018]
[1726062316059,0.000817,56485.0,56480.0,0.0035405]
[1726062316333,0.000817,56485.0,56482.0,0.17594018]
[1726062316597,0.000817,56485.0,56483.0,0.08657395]
[1726062316816,0.000817,56485.0,56484.0,0.17594018]
[1726062317698,0.000817,56485.0,56484.0,0.25724018]
[1726062317930,0.000817,56485.0,56484.0,0.32118014]
[1726062318177,0.000817,56485.0,56484.0,0.34448174]
[1726062318897,0.000817,56485.0,56484.0,0.34948174]
[1726062319132,0.000817,56485.0,56484.0,1.95502436]
[1726062319685,0.000817,56485.0,56484.0,1.95500656]
[1726062319934,0.000817,56485.0,56484.0,2.03490256]
[1726062320208,0.000817,56485.0,56484.0,1.8471666]
[1726062320498,0.000817,56485.0,56484.0,2.0175646]
[1726062320722,0.000817,56485.0,56484.0,2.0315646]
[1726062320949,0.000817,56485.0,56484.0,1.7917666]
[1726062321182,0.000817,56485.0,56484.0,1.7988566]
[1726062321455,0.000817,56485.0,56484.0,1.8268566]
[1726062321704,0.000817,56485.0,56484.0,1.7964828]
[1726062322184,0.144117,56485.0,56484.0,0.21394018]
[1726062322414,0.000817,56485.0,56484.0,0.21394018]
[1726062322631,0.0015165,56499.0,56484.0,0.69342475]
[1726062322853,0.0015165,56499.0,56484.0,0.21394018]
[1726062323092,0.0015165,56499.0,56485.0,0.03024485]
[1726062323332,0.0015165,56499.0,56486.0,0.17594018]
[1726062323546,0.0015165,56499.0,56488.0,0.17594018]
[1726062324208,0.0025165,56499.0,56489.0,0.00353994]
[1726062324431,0.0025165,56499.0,56490.0,0.01794801]
[1726062324689,0.0025165,56499.0,56491.0,0.17594018]
[1726062325791,0.0015165,56499.0,56491.0,0.17594018]
[1726062326003,0.0025165,56499.0,56491.0,0.17594018]
[1726062326669,0.0015165,56499.0,56491.0,1.67594018]
[1726062326888,0.0025165,56499.0,56492.0,0.10391398]
[1726062327108,0.0025165,56499.0,56493.0,0.17594018]
[1726062328255,0.0025165,56499.0,56495.0,0.17594018]
[1726062328914,0.0023335,56499.0,56496.0,0.17947983]
[1726062329189,0.0033335,56499.0,56496.0,1.67947983]
[1726062329406,0.0033335,56499.0,56498.0,0.17794018]
[1726062329618,0.0023335,56499.0,56498.0,0.34047902]
[1726062330673,0.0023335,56499.0,56498.0,0.30694018]
[1726062330959,0.0023335,56499.0,56498.0,0.18513119]
[1726062331186,0.0023335,56499.0,56498.0,0.17594018]
[1726062331613,0.01406832,56499.0,56481.0,0.67045264]
[1726062331857,0.01406832,56499.0,56482.0,0.17594018]
[1726062331858,0.0023335,56499.0,56482.0,0.17594018]
[1726062332074,0.0023335,56499.0,56498.0,0.014]
[1726062332304,0.0023335,56499.0,56498.0,0.028]
[1726062332530,0.1450335,56499.0,56498.0,0.015]
[1726062332752,0.15659273,56499.0,56498.0,0.015]
[1726062332981,0.15759273,56499.0,56498.0,0.015]
[1726062333486,0.15659273,56499.0,56498.0,0.015]
[1726062333721,0.15659273,56499.0,56498.0,0.016]
[1726062333722,0.15759273,56499.0,56498.0,0.016]
[1726062333962,0.42688663,56499.0,56498.0,0.016]
[1726062334200,0.42688663,56499.0,56479.0,0.001634]
[1726062334201,0.1429,56490.0,56479.0,0.001634]